lending/lending_fUSD_20250706
["ID","MTS","AMOUNT","RATE_DAILY","PERIOD"]
[369968254,1751803847241,-460.0,0.00019178,2]
[369968256,1751803847250,-460.0,0.00019178,2]
[369968258,1751803847259,-460.0,0.00019178,2]
[369968260,1751803847268,-460.0,0.00019178,2]
[369968262,1751803847278,-460.0,0.00019178,2]
[369968264,1751803847287,-460.0,0.00019178,2]
[369968266,1751803847296,-460.0,0.00019178,2]
[369968267,1751803847305,-460.0,0.00019178,2]
[369968269,1751803847316,-460.0,0.00019178,2]
[369968272,1751803847326,-460.0,0.00019178,2]
[369968273,1751803847335,-460.0,0.00019178,2]
[369968275,1751803847344,-460.0,0.00019178,2]
[369968277,1751803847353,-460.0,0.00019178,2]
[369968279,1751803847363,-460.0,0.00019178,2]
[369968281,1751803847372,-460.0,0.00019178,2]
[369968283,1751803847381,-500.0,0.00019178,2]
[369968285,1751803847392,-217.17016203,0.00019178,2]
[369968288,1751803847401,-460.0,0.00019178,2]
[369968290,1751803847411,-460.0,0.00019178,2]
[369968292,1751803847421,-460.0,0.00019178,2]
[369968293,1751803847430,-460.0,0.00019178,2]
[369968295,1751803847439,-460.0,0.00019178,2]
[369968297,1751803847449,-460.0,0.00019178,2]
[369968299,1751803847458,-460.0,0.00019178,2]
[369968301,1751803847467,-460.0,0.00019178,2]
[369968303,1751803847476,-460.0,0.00019178,2]
[369968305,1751803847486,-544.81,0.00019178,2]
[369968307,1751803847495,-460.0,0.00019178,2]
[369968309,1751803847505,-151.0,0.00019178,2]
[369968312,1751803847514,-151.0,0.00019178,2]
[369968314,1751803847528,-151.0,0.00019178,2]
[369968315,1751803847537,-151.0,0.00019178,2]
[369968317,1751803847546,-151.0,0.00019178,2]
[369968319,1751803847555,-152.613891,0.00019178,2]
[369968321,1751803847566,-460.0,0.00019178,2]
[369968323,1751803847575,-460.0,0.00019178,2]
[369968325,1751803847585,-460.0,0.00019178,2]
[369968328,1751803847595,-460.0,0.00019178,2]
[369968330,1751803847605,-460.0,0.00019178,2]
[369968332,1751803847616,-460.0,0.00019178,2]
[369968334,1751803847626,-460.0,0.00019178,2]
[369968336,1751803847635,-460.0,0.00019178,2]
[369968337,1751803847644,-467.71479895,0.00019178,2]
[369968339,1751803847653,-460.0,0.00019178,2]
[369968341,1751803847663,-462.37883514,0.00019178,2]
[369968343,1751803847672,-460.0,0.00019178,2]
[369968345,1751803847681,-460.0,0.00019178,2]
[369968347,1751803847691,-460.0,0.00019178,2]
[369968348,1751803847700,-460.0,0.00019178,2]
[369968349,1751803847709,-460.0,0.00019178,2]
[369968350,1751803847718,-460.0,0.00019178,2]
[369968351,1751803847728,-460.0,0.00019178,2]
[369968352,1751803847737,-460.0,0.00019178,2]
[369968353,1751803847746,-460.0,0.00019178,2]
[369968354,1751803847757,-460.0,0.00019178,2]
[369968355,1751803847768,-460.0,0.00019178,2]
[369968356,1751803847777,-460.0,0.00019178,2]
[369968357,1751803847787,-491.57,0.00019178,2]
[369968358,1751803847796,-460.0,0.00019178,2]
[369968359,1751803847805,-460.0,0.00019178,2]
[369968360,1751803847815,-460.0,0.00019178,2]
[369968361,1751803847826,-460.0,0.00019178,2]
[369968362,1751803847835,-460.0,0.00019178,2]
[369968363,1751803847845,-460.0,0.00019178,2]
[369968364,1751803847855,-460.0,0.00019178,2]
[369968365,1751803847864,-460.0,0.00019178,2]
[369968366,1751803847873,-460.0,0.00019178,2]
[369968367,1751803847883,-290.81537002,0.00019178,2]
[369968368,1751803847892,-585.59,0.00019178,2]
[369968369,1751803847902,-460.0,0.00019178,2]
[369968370,1751803847912,-460.0,0.00019178,2]
[369968371,1751803847921,-460.0,0.00019178,2]
[369968372,1751803847931,-460.0,0.00019178,2]
[369968373,1751803847940,-460.0,0.00019178,2]
[369968374,1751803847950,-460.0,0.00019178,2]
[369968375,1751803847959,-460.0,0.00019178,2]
[369968376,1751803847969,-460.0,0.00019178,2]
[369968377,1751803847978,-460.0,0.00019178,2]
[369968378,1751803847987,-460.0,0.00019178,2]
[369968379,1751803847997,-460.0,0.00019178,2]
[369968380,1751803848007,-500.64734688,0.00019178,2]
[369968381,1751803848017,-460.0,0.00019178,2]
[369968382,1751803848026,-460.0,0.00019178,2]
[369968383,1751803848035,-460.0,0.00019178,2]
[369968384,1751803848044,-460.0,0.00019178,2]
[369968385,1751803848054,-460.0,0.00019178,2]
[369968387,1751803848063,-460.0,0.00019178,2]
[369968389,1751803848072,-460.0,0.00019178,2]
[369968390,1751803848083,-460.0,0.00019178,2]
[369968392,1751803848093,-460.0,0.00019178,2]
[369968394,1751803848102,-460.0,0.00019178,2]
[369968395,1751803848111,-201.39955627,0.00019178,2]
[369968397,1751803848120,-460.0,0.00019178,2]
[369968398,1751803848130,-460.0,0.00019178,2]
[369968400,1751803848140,-460.0,0.00019178,2]
[369968401,1751803848149,-460.0,0.00019178,2]
[369968403,1751803848158,-526.65480461,0.00019178,2]
[369968405,1751803848168,-460.0,0.00019178,2]
[369968407,1751803848177,-460.0,0.00019178,2]
[369968408,1751803848186,-460.0,0.00019178,2]
[369968410,1751803848195,-460.0,0.00019178,2]
[369968412,1751803848205,-460.0,0.00019178,2]
[369968413,1751803848214,-460.0,0.00019178,2]
[369968415,1751803848224,-460.0,0.00019178,2]
[369968417,1751803848234,-460.0,0.00019178,2]
[369968418,1751803848243,-460.0,0.00019178,2]
[369968419,1751803848253,-460.0,0.00019178,2]
[369968420,1751803848262,-460.0,0.00019178,2]
[369968422,1751803848272,-460.0,0.00019178,2]
[369968423,1751803848282,-460.0,0.00019178,2]
[369968425,1751803848292,-460.0,0.00019178,2]
[369968427,1751803848302,-500.0,0.00019178,2]
[369968429,1751803848311,-460.0,0.00019178,2]
[369968430,1751803848320,-460.0,0.00019178,2]
[369968432,1751803848330,-460.0,0.00019178,2]
[369968434,1751803848339,-460.0,0.00019178,2]
[369968436,1751803848348,-460.0,0.00019178,2]
[369968437,1751803848358,-460.0,0.00019178,2]
[369968439,1751803848367,-460.0,0.00019178,2]
[369968441,1751803848377,-460.0,0.00019178,2]
[369968443,1751803848387,-460.0,0.00019178,2]
[369968445,1751803848396,-460.0,0.00019178,2]
[369968446,1751803848405,-460.0,0.00019178,2]
[369968448,1751803848415,-460.0,0.00019178,2]
[369968450,1751803848425,-460.0,0.00019178,2]
[369968452,1751803848435,-460.0,0.00019178,2]
[369968454,1751803848444,-460.0,0.00019178,2]
[369968455,1751803848453,-460.0,0.00019178,2]
[369968457,1751803848462,-458.85182582,0.00019178,2]
[369968459,1751803848472,-460.0,0.00019178,2]
[369968461,1751803848482,-599.64961611,0.00019178,2]
[369968462,1751803848491,-460.0,0.00019178,2]
[369968464,1751803848501,-460.0,0.00019178,2]
[369968466,1751803848510,-460.0,0.00019178,2]
[369968468,1751803848520,-490.0,0.00019178,2]
[369968470,1751803848533,-100.54578483,0.00019178,2]
[369968852,1751803908698,150.0,0.0003013,120]
[369968853,1751803950809,150.0,0.00026646,120]
[369968855,1751803952213,150.0,0.0003013,120]
[369968856,1751803961383,-237.77376,0.00014272,2]
[369968862,1751803992382,152.11068075,0.0003013,120]
[369968863,1751803992945,2000.0,0.00026233,120]
[369968864,1751803993285,2000.0,0.00028141,120]
[369968865,1751803993664,2000.0,0.00030048,120]
[369968866,1751803999233,500.0,0.00026578,120]
[369968867,1751804001161,500.0,0.00028829,120]
[369968872,1751804070934,150.0,0.00030017,120]
[369968874,1751804095753,0.02624,0.00013699,2]
[369968875,1751804095778,192.36376,0.00013699,2]
[369968882,1751804130699,150.0,0.00028629,120]
[369968886,1751804191012,150.0,0.00028951,120]
[369968889,1751804249620,1444.0,0.00026137,120]
[369968891,1751804252307,150.0,0.00028215,120]
[369968899,1751804323162,300.0,0.00030137,120]
[369968900,1751804330487,300.0,0.00030137,120]
[369968901,1751804339735,200.0,0.00030137,120]
[369968902,1751804362437,200.65,0.00030137,120]
[369968904,1751804596080,960.359946,0.00026234,120]
[369968905,1751804599675,500.0,0.00026829,120]
[369968906,1751804600144,500.0,0.00029332,120]
[369968908,1751804670596,153.0,0.0003,120]
[369968910,1751804728517,1981.23966215,0.000273,120]
[369968911,1751804729847,436.36512233,0.00023,120]
[369968912,1751804734067,1172.74492007,0.0002,120]
[369968913,1751804736262,781.82690705,0.0003013,120]
[369968915,1751804755280,517.18051232,0.000301,120]
[369968925,1751804814454,764.31,0.00024761,120]
[369968926,1751804814650,764.31,0.00027012,120]
[369968928,1751804833750,1053.24958678,0.0002301,120]
[369968930,1751804874572,160.0,0.0003013,120]
[369968931,1751804876061,3095.9,0.0003013,120]
[369968936,1751804900336,262.43155175,0.00030137,120]
[369968937,1751804913334,200.0,0.0003013,120]
[369968940,1751804916867,1881.80204226,0.0002739,120]
[369968942,1751804918138,620.06146473,0.000246,120]
[369968943,1751804923123,1972.69842368,0.0003013,120]
[369968944,1751804924389,624.7497777,0.00024,120]
[369968947,1751804925698,800.0,0.00021,120]
[369968949,1751804927440,165.34499283,0.00027397,120]
[369968953,1751804928922,2614.0,0.0003013,120]
[369968956,1751804930636,301.23396968,0.0002465,120]
[369968958,1751804931149,225.76469034,0.000273,120]
[369968972,1751805031455,-570.27217021,0.00017062,2]
[369968976,1751805031505,1444.0,0.00026137,120]
[369968977,1751805031622,-367.72782979,0.00017062,2]
[369968978,1751805031633,-302.37,0.00017063,2]
[369968979,1751805031646,-304.94,0.00017063,2]
[369968980,1751805031657,-155.69934772,0.00017063,2]
[369968981,1751805031670,-147.17065228,0.00017063,2]
[369968982,1751805031681,-303.49,0.00017063,2]
[369968983,1751805031691,-301.46,0.00017063,2]
[369968984,1751805031702,-305.25,0.00017063,2]
[369968985,1751805031712,-301.22,0.00017063,2]
[369968986,1751805031723,-301.9,0.00017063,2]
[369968987,1751805031734,-261.69934772,0.00017063,2]
[369968988,1751805031755,-40.19065228,0.00017063,2]
[369968989,1751805031767,-500.0,0.00017064,2]
[369968990,1751805031778,-45.69262015,0.00017064,2]
[369968991,1751805031791,-454.30737985,0.00017064,2]
[369968992,1751805031802,-305.63,0.00017064,2]
[369968993,1751805031813,-302.14,0.00017064,2]
[369968994,1751805031823,-301.41,0.00017064,2]
[369968995,1751805031834,-138.90292525,0.00017064,2]
[369968996,1751805031884,-163.64707475,0.00017064,2]
[369968997,1751805031896,-132.69902133,0.00017064,2]
[369969010,1751805037479,294.770412,0.0003,120]
[369969011,1751805037724,-172.31097867,0.00017064,2]
[369969012,1751805037734,-231.74101353,0.00017064,2]
[369969220,1751805039854,-70.27898647,0.00017064,2]
[369969222,1751805039864,-300.8,0.00017064,2]
[369969224,1751805039874,-304.17,0.00017064,2]
[369969226,1751805039883,-305.7,0.00017064,2]
[369969228,1751805039893,-302.05,0.00017064,2]
[369969230,1751805039902,-300.06,0.00017064,2]
[369969232,1751805039913,-4321.91323578,0.0001798,2]
[369969484,1751805042670,-5395.04676422,0.0001798,2]
[369969485,1751805042679,-764.31,0.00018008,2]
[369969487,1751805042687,-207.4,0.00018043,2]
[369969489,1751805042696,-174.0,0.000181,2]
[369969491,1751805042706,-674.28462798,0.000181,2]
[369969493,1751805042715,-1000.0,0.00018103,2]
[369969495,1751805042725,-200.0,0.0001818,7]
[369969496,1751805042734,-352.72,0.00018285,2]
[369969498,1751805042744,-156.12,0.00018329,2]
[369969500,1751805042753,-171.0,0.0001859,2]
[369969502,1751805042763,-913.35,0.00018678,2]
[369969504,1751805042772,-300.0,0.000187,6]
[369969506,1751805042781,-600.0,0.000188,6]
[369969508,1751805042792,-151.021695,0.00018869,2]
[369969510,1751805042802,-271.94,0.00018878,2]
[369969512,1751805042812,-9716.96,0.00018879,2]
[369969513,1751805042821,-1000.0,0.000189,6]
[369969515,1751805042830,-1199.99378189,0.000189,2]
[369969517,1751805042839,-156.12,0.00019016,2]
[369969519,1751805042848,-151.0,0.00019067,2]
[369969521,1751805042859,-167.0,0.0001907,2]
[369969523,1751805042868,-168.0,0.00019073,2]
[369969524,1751805042877,-201.75083334,0.00019078,2]
[369969526,1751805042886,-351.18938204,0.00019078,2]
[369969528,1751805042895,-248.040006,0.00019078,2]
[369969530,1751805042904,-2378.33250471,0.00019078,2]
[369969531,1751805042913,-5000.0,0.00019078,2]
[369969533,1751805042923,-271.91,0.000191,2]
[369969535,1751805042932,-2009.551,0.00019144,2]
[369969537,1751805042941,-875.089,0.00019144,2]
[369969539,1751805042951,-271.91,0.00019152,2]
[369969540,1751805042960,-168.0,0.00019164,2]
[369969542,1751805042970,-294.35920731,0.00019168,2]
[369969544,1751805042979,-500.0,0.00019173,2]
[369969546,1751805042989,-500.0,0.00019173,2]
[369969548,1751805042999,-160.0,0.00019176,2]
[369969550,1751805043009,-1059.0,0.00019177,2]
[369969552,1751805043019,-500.0,0.00019177,2]
[369969554,1751805043028,-150.0,0.00019177,2]
[369969555,1751805043038,-962.0,0.00019177,2]
[369969557,1751805043048,-500.0,0.00019177,2]
[369969559,1751805043058,-500.0,0.00019177,2]
[369969561,1751805043067,-500.0,0.00019177,2]
[369969563,1751805043077,-393.72080593,0.00019177,2]
[369969565,1751805043086,-500.0,0.00019177,2]
[369969567,1751805043096,-393.28624843,0.00019177,2]
[369969568,1751805043105,-530.0,0.00019178,2]
[369969570,1751805043114,-2051.43737111,0.00019178,2]
[369969576,1751805043166,-507163.52705227,0.00019178,2]
[369969577,1751805043177,-151.0,0.00019178,2]
[369969579,1751805043187,-151.0,0.00019178,2]
[369969581,1751805043196,-151.0,0.00019178,2]
[369969583,1751805043207,-151.0,0.00019178,2]
[369969585,1751805043217,-151.0,0.00019178,2]
[369969587,1751805043226,-151.0,0.00019178,2]
[369969588,1751805043236,-151.0,0.00019178,2]
[369969590,1751805043246,-151.0,0.00019178,2]
[369969592,1751805043258,-151.0,0.00019178,2]
[369969594,1751805043268,-151.0,0.00019178,2]
[369969596,1751805043277,-151.0,0.00019178,2]
[369969598,1751805043287,-151.0,0.00019178,2]
[369969600,1751805043298,-151.0,0.00019178,2]
[369969602,1751805043307,-151.0,0.00019178,2]
[369969604,1751805043316,-228.255158,0.00019178,2]
[369969605,1751805043326,-460.0,0.00019178,2]
[369969607,1751805043336,-460.0,0.00019178,2]
[369969609,1751805043345,-460.0,0.00019178,2]
[369969611,1751805043355,-460.0,0.00019178,2]
[369969613,1751805043365,-460.0,0.00019178,2]
[369969615,1751805043375,-460.0,0.00019178,2]
[369969617,1751805043384,-559.95223645,0.00019178,2]
[369969619,1751805043394,-460.0,0.00019178,2]
[369969621,1751805043404,-468.73261475,0.00019178,2]
[369969622,1751805043414,-493.07660128,0.00019178,2]
[369969624,1751805043424,-469.15596784,0.00019178,2]
[369969626,1751805043434,-460.0,0.00019178,2]
[369969628,1751805043444,-460.0,0.00019178,2]
[369969630,1751805043454,-460.0,0.00019178,2]
[369969632,1751805043464,-460.0,0.00019178,2]
[369969634,1751805043474,-460.0,0.00019178,2]
[369969636,1751805043484,-460.0,0.00019178,2]
[369969637,1751805043493,-460.0,0.00019178,2]
[369969639,1751805043503,-460.0,0.00019178,2]
[369969641,1751805043512,-460.0,0.00019178,2]
[369969643,1751805043523,-460.0,0.00019178,2]
[369969645,1751805043533,-460.0,0.00019178,2]
[369969647,1751805043542,-522.57994992,0.00019178,2]
[369969649,1751805043551,-460.0,0.00019178,2]
[369969651,1751805043561,-460.0,0.00019178,2]
[369969652,1751805043570,-460.0,0.00019178,2]
[369969653,1751805043580,-460.0,0.00019178,2]
[369969654,1751805043590,-460.0,0.00019178,2]
[369969655,1751805043601,-460.0,0.00019178,2]
[369969656,1751805043611,-552.39022638,0.00019178,2]
[369969657,1751805043620,-460.0,0.00019178,2]
[369969658,1751805043630,-460.0,0.00019178,2]
[369969659,1751805043639,-460.0,0.00019178,2]
[369969660,1751805043649,-460.0,0.00019178,2]
[369969661,1751805043658,-460.0,0.00019178,2]
[369969662,1751805043667,-247.09749963,0.00019178,2]
[369969663,1751805043677,-460.0,0.00019178,2]
[369969664,1751805043687,-460.0,0.00019178,2]
[369969665,1751805043696,-460.0,0.00019178,2]
[369969666,1751805043705,-460.0,0.00019178,2]
[369969667,1751805043715,-460.0,0.00019178,2]
[369969668,1751805043724,-460.0,0.00019178,2]
[369969669,1751805043733,-460.0,0.00019178,2]
[369969670,1751805043742,-460.0,0.00019178,2]
[369969671,1751805043752,-460.0,0.00019178,2]
[369969673,1751805043762,-460.0,0.00019178,2]
[369969674,1751805043771,-460.0,0.00019178,2]
[369969676,1751805043780,-460.0,0.00019178,2]
[369969678,1751805043789,-460.0,0.00019178,2]
[369969680,1751805043798,-460.0,0.00019178,2]
[369969682,1751805043808,-460.0,0.00019178,2]
[369969684,1751805043817,-460.0,0.00019178,2]
[369969686,1751805043831,-460.0,0.00019178,2]
[369969688,1751805043841,-460.0,0.00019178,2]
[369969690,1751805043852,-460.0,0.00019178,2]
[369969692,1751805043862,-460.0,0.00019178,2]
[369969694,1751805043872,-460.0,0.00019178,2]
[369969697,1751805043883,-460.0,0.00019178,2]
[369969699,1751805043892,-460.0,0.00019178,2]
[369969701,1751805043902,-460.0,0.00019178,2]
[369969703,1751805043911,-460.0,0.00019178,2]
[369969705,1751805043921,-460.0,0.00019178,2]
[369969707,1751805043930,-460.0,0.00019178,2]
[369969709,1751805043940,-460.0,0.00019178,2]
[369969711,1751805043950,-460.0,0.00019178,2]
[369969713,1751805043959,-460.0,0.00019178,2]
[369969715,1751805043969,-460.0,0.00019178,2]
[369969717,1751805043979,-204.47529441,0.00019178,2]
[369969719,1751805043988,-460.0,0.00019178,2]
[369969721,1751805043998,-460.0,0.00019178,2]
[369969723,1751805044007,-460.0,0.00019178,2]
[369969725,1751805044017,-463.83525339,0.00019178,2]
[369969727,1751805044027,-460.0,0.00019178,2]
[369969729,1751805044036,-460.0,0.00019178,2]
[369969731,1751805044046,-180.0,0.00019178,2]
[369969733,1751805044056,-460.0,0.00019178,2]
[369969735,1751805044066,-460.0,0.00019178,2]
[369969737,1751805044075,-460.0,0.00019178,2]
[369969739,1751805044084,-460.0,0.00019178,2]
[369969741,1751805044094,-460.0,0.00019178,2]
[369969743,1751805044103,-460.0,0.00019178,2]
[369969745,1751805044113,-330.18257885,0.00019178,2]
[369969747,1751805044123,-460.0,0.00019178,2]
[369969749,1751805044138,-460.0,0.00019178,2]
[369969751,1751805044150,-460.0,0.00019178,2]
[369969753,1751805044160,-460.0,0.00019178,2]
[369969756,1751805044170,-460.0,0.00019178,2]
[369969758,1751805044181,-460.0,0.00019178,2]
[369969760,1751805044191,-460.0,0.00019178,2]
[369969762,1751805044202,-460.0,0.00019178,2]
[369969764,1751805044212,-469.23007766,0.00019178,2]
[369969766,1751805044221,-460.0,0.00019178,2]
[369969768,1751805044231,-521.24,0.00019178,2]
[369969770,1751805044240,-460.0,0.00019178,2]
[369969772,1751805044249,-460.0,0.00019178,2]
[369969774,1751805044260,-460.0,0.00019178,2]
[369969776,1751805044269,-460.0,0.00019178,2]
[369969778,1751805044279,-460.0,0.00019178,2]
[369969780,1751805044290,-460.0,0.00019178,2]
[369969782,1751805044299,-460.0,0.00019178,2]
[369969784,1751805044309,-460.0,0.00019178,2]
[369969786,1751805044319,-460.0,0.00019178,2]
[369969788,1751805044328,-460.0,0.00019178,2]
[369969790,1751805044338,-460.0,0.00019178,2]
[369969792,1751805044347,-460.0,0.00019178,2]
[369969794,1751805044357,-460.0,0.00019178,2]
[369969796,1751805044367,-460.0,0.00019178,2]
[369969798,1751805044377,-460.0,0.00019178,2]
[369969800,1751805044389,-564.78199924,0.00019178,2]
[369969802,1751805044399,-460.0,0.00019178,2]
[369969804,1751805044408,-557.30760536,0.00019178,2]
[369969806,1751805044418,-460.0,0.00019178,2]
[369969808,1751805044428,-219.05596418,0.00019178,2]
[369969810,1751805044437,-460.0,0.00019178,2]
[369969812,1751805044446,-460.0,0.00019178,2]
[369969814,1751805044456,-460.0,0.00019178,2]
[369969816,1751805044465,-554.53896495,0.00019178,2]
[369969818,1751805044475,-300.0,0.00019178,2]
[369969820,1751805044485,-317.57944986,0.00019178,2]
[369969822,1751805044495,-461.40278992,0.00019178,2]
[369969825,1751805044506,-460.0,0.00019178,2]
[369969827,1751805044519,-460.0,0.00019178,2]
[369969828,1751805044528,-601.47,0.00019178,2]
[369969831,1751805044537,-460.0,0.00019178,2]
[369969833,1751805044547,-460.0,0.00019178,2]
[369969835,1751805044556,-460.0,0.00019178,2]
[369969837,1751805044565,-490.0,0.00019178,2]
[369969839,1751805044575,-460.0,0.00019178,2]
[369969841,1751805044585,-460.0,0.00019178,2]
[369969843,1751805044594,-460.0,0.00019178,2]
[369969845,1751805044603,-560.31,0.00019178,2]
[369969847,1751805044613,-460.0,0.00019178,2]
[369969849,1751805044622,-460.0,0.00019178,2]
[369969851,1751805044632,-460.0,0.00019178,2]
[369969853,1751805044641,-460.0,0.00019178,2]
[369969855,1751805044651,-460.0,0.00019178,2]
[369969857,1751805044661,-460.0,0.00019178,2]
[369969859,1751805044671,-460.0,0.00019178,2]
[369969861,1751805044681,-460.0,0.00019178,2]
[369969863,1751805044690,-524.50915695,0.00019178,2]
[369969865,1751805044700,-460.0,0.00019178,2]
[369969867,1751805044710,-460.0,0.00019178,2]
[369969869,1751805044720,-460.0,0.00019178,2]
[369969871,1751805044730,-460.0,0.00019178,2]
[369969873,1751805044740,-460.0,0.00019178,2]
[369969875,1751805044750,-460.0,0.00019178,2]
[369969877,1751805044760,-460.0,0.00019178,2]
[369969879,1751805044769,-460.0,0.00019178,2]
[369969882,1751805044779,-460.0,0.00019178,2]
[369969884,1751805044789,-500.0,0.00019178,2]
[369969886,1751805044798,-586.3,0.00019178,2]
[369969888,1751805044807,-460.0,0.00019178,2]
[369969890,1751805044816,-460.0,0.00019178,2]
[369969892,1751805044826,-460.0,0.00019178,2]
[369969894,1751805044835,-460.0,0.00019178,2]
[369969896,1751805044845,-460.0,0.00019178,2]
[369969898,1751805044855,-460.0,0.00019178,2]
[369969900,1751805044865,-460.0,0.00019178,2]
[369969902,1751805044874,-460.0,0.00019178,2]
[369969904,1751805044883,-460.0,0.00019178,2]
[369969906,1751805044893,-460.0,0.00019178,2]
[369969908,1751805044902,-460.0,0.00019178,2]
[369969910,1751805044912,-460.0,0.00019178,2]
[369969912,1751805044922,-460.0,0.00019178,2]
[369969914,1751805044931,-460.0,0.00019178,2]
[369969916,1751805044940,-460.0,0.00019178,2]
[369969918,1751805044950,-460.0,0.00019178,2]
[369969920,1751805044959,-460.0,0.00019178,2]
[369969922,1751805044969,-460.0,0.00019178,2]
[369969924,1751805044979,-460.0,0.00019178,2]
[369969926,1751805044989,-460.0,0.00019178,2]
[369969928,1751805044999,-460.0,0.00019178,2]
[369969930,1751805045008,-460.0,0.00019178,2]
[369969932,1751805045017,-460.0,0.00019178,2]
[369969934,1751805045027,-460.0,0.00019178,2]
[369969936,1751805045036,-460.0,0.00019178,2]
[369969938,1751805045047,-460.0,0.00019178,2]
[369969940,1751805045057,-460.0,0.00019178,2]
[369969942,1751805045068,-460.0,0.00019178,2]
[369969944,1751805045078,-460.0,0.00019178,2]
[369969946,1751805045087,-581.21,0.00019178,2]
[369969956,1751805045175,-460.0,0.00019178,2]
[369969958,1751805045186,-476.42649232,0.00019178,2]
[369969960,1751805045196,-460.0,0.00019178,2]
[369969962,1751805045206,-460.0,0.00019178,2]
[369969964,1751805045216,-460.0,0.00019178,2]
[369969966,1751805045225,-460.0,0.00019178,2]
[369969968,1751805045235,-460.0,0.00019178,2]
[369969970,1751805045245,-460.0,0.00019178,2]
[369969972,1751805045254,-460.0,0.00019178,2]
[369969974,1751805045265,-460.0,0.00019178,2]
[369969976,1751805045274,-460.0,0.00019178,2]
[369969978,1751805045283,-460.0,0.00019178,2]
[369969980,1751805045293,-460.0,0.00019178,2]
[369969982,1751805045302,-460.0,0.00019178,2]
[369969984,1751805045312,-460.0,0.00019178,2]
[369969987,1751805045322,-460.0,0.00019178,2]
[369969988,1751805045331,-169.78606151,0.00019178,2]
[369969990,1751805045341,-460.0,0.00019178,2]
[369969992,1751805045350,-460.0,0.00019178,2]
[369969994,1751805045359,-460.0,0.00019178,2]
[369969997,1751805045369,-460.0,0.00019178,2]
[369969998,1751805045378,-460.0,0.00019178,2]
[369970000,1751805045387,-460.0,0.00019178,2]
[369970002,1751805045396,-460.0,0.00019178,2]
[369970004,1751805045406,-460.0,0.00019178,2]
[369970006,1751805045415,-460.0,0.00019178,2]
[369970008,1751805045424,-460.0,0.00019178,2]
[369970010,1751805045434,-460.0,0.00019178,2]
[369970012,1751805045443,-460.0,0.00019178,2]
[369970015,1751805045453,-460.0,0.00019178,2]
[369970016,1751805045462,-460.0,0.00019178,2]
[369970018,1751805045471,-460.0,0.00019178,2]
[369970021,1751805045481,-460.0,0.00019178,2]
[369970023,1751805045491,-460.0,0.00019178,2]
[369970024,1751805045500,-460.0,0.00019178,2]
[369970026,1751805045509,-460.0,0.00019178,2]
[369970028,1751805045519,-460.0,0.00019178,2]
[369970030,1751805045528,-460.0,0.00019178,2]
[369970032,1751805045538,-460.0,0.00019178,2]
[369970035,1751805045547,-460.0,0.00019178,2]